[Event "SixDays Budapest GM-A May 2024"]
[Site "Budapest"]
[Date "2024.05.21"]
[Round "9.3"]
[White "Krastev, Alexander"]
[Black "Sathvik Adiga"]
[Result "0-1"]
[ECO "C77"]
[WhiteElo "2458"]
[BlackElo "2398"]
[Annotator "RC"]
[PlyCount "172"]
[EventDate "2024.05.15"]
[EventType "tourn"]
[EventCountry "HUN"]
[SourceTitle "playchess.com"]
[Source "ChessBase"]
[SourceQuality "1"]
[TimeControl "40/5400+30:1800+30"]

1. e4 {[%emt 0:15:46]} e5 {[%emt 0:00:07]} 2. Nf3 {[%emt 0:00:05]} Nc6 {[%emt 0:00:02]} 3. Bb5 {[%emt 0:00:06]} a6 {[%emt 0:00:03]} 4. Ba4 {[%emt 0:00:03]} Nf6 {[%emt 0:00:01]} 5. Nc3 {[%emt 0:00:05]} Bc5 {[%emt 0:00:04]} 6. d3 {[%emt 0:00:09]} b5 {[%emt 0:00:06]} 7. Bb3 {[%emt 0:00:04]} h6 {[%emt 0:00:04]} 8. Nd5 {[%emt 0:03:05]} d6 {[%emt 0:00:02]} 9. c3 {[%emt 0:01:00]} Rb8 {[%emt 0:00:56]} 10. O-O {[%emt 0:05:29]} O-O {[%emt 0:00:32]} 11. Be3 {[%emt 0:01:01]} Nxd5 {[%emt 0:04:16]} 12. Bxd5 {[%emt 0:04:27]} Bxe3 {[%emt 0:00:16]} 13. fxe3 {[%emt 0:00:05]} Ne7 {[%emt 0:00:02]} 14. Bb3 {[%emt 0:00:05]} Ng6 {[%emt 0:00:51]} 15. Qe1 {[%emt 0:00:39]} Kh7 {[%emt 0:14:01]} 16. Qg3 {[%emt 0:00:48]} f5 {[%emt 0:00:52]} 17. exf5 {[%emt 0:00:07]} Bxf5 {[%emt 0:00:12]} 18. d4 {[%emt 0:19:49]} e4 {[%emt 0:22:58]} 19. Nd2 {[%emt 0:00:19]} d5 {[%emt 0:00:05]} 20. Rf2 {[%emt 0:01:10]} Rb6 {[%emt 0:00:33]} 21. Raf1 {[%emt 0:01:24]} Rbf6 {[%emt 0:00:26]} 22. Bd1 {[%emt 0:01:26]} Qd6 {[%emt 0:14:35]} 23. Qxd6 {[%emt 0:21:41]} cxd6 {[%emt 0:00:01]} 24. Nb3 {[%emt 0:00:19]} Bc8 {[%emt 0:11:48]} 25. Rxf6 {[%emt 0:00:35]} gxf6 {[%emt 0:00:08]} 26. Nc1 {[%emt 0:00:16]} Be6 {[%emt 0:05:31]} 27. Bb3 {[%emt 0:04:22]} f5 {[%emt 0:04:17]} 28. Ne2 {[%emt 0:00:17]} Kg7 {[%emt 0:00:35]} 29. Ng3 {[%emt 0:03:06]} Kf6 {[%emt 0:02:08]} 30. Nh5+ {[%emt 0:00:07]} Ke7 {[%emt 0:02:07]} 31. Rf2 {[%emt 0:07:39]} Rc8 {[%emt 0:07:25]} 32. Rf1 {[%emt 0:04:09]} Rf8 {[%emt 0:00:13]} 33. Nf4 {[%emt 0:03:36]} Nxf4 {[%emt 0:01:14]} 34. Rxf4 {[%emt 0:00:02]} Kf6 {[%emt 0:01:51]} 35. g3 {[%emt 0:00:18]} a5 {[%emt 0:00:28]} 36. a3 {[%emt 0:01:30]} Kg6 {[%emt 0:02:41]} 37. Rf1 {[%emt 0:02:26]} Kg5 {[%emt 0:02:17]} 38. Kg2 {[%emt 0:00:45]} Rb8 {[%emt 0:00:47]} 39. Rf2 {[%emt 0:00:25]} Rb7 {[%emt 0:00:48]} 40. Kf1 {[%emt 0:01:04]} Ra7 {[%emt 0:00:27]} 41. Rc2 {[%emt 0:30:31]} Ra6 {[%emt 0:30:47]} 42. Kf2 {[%emt 0:00:16]} Kg4 {[%emt 0:00:11]} 43. Kg2 {[%emt 0:00:25]} Kg5 {[%emt 0:00:05]} 44. Rc1 {[%emt 0:00:26]} Rc6 {[%emt 0:00:26]} 45. Ra1 {[%emt 0:00:15]} Rb6 {[%emt 0:00:08]} 46. Kf2 {[%emt 0:00:46]} Rb8 {[%emt 0:00:22]} 47. Kg1 {[%emt 0:00:57]} Bf7 {[%emt 0:00:14]} 48. Rf1 {[%emt 0:00:07]} Be6 {[%emt 0:00:06]} 49. Rf2 {[%emt 0:00:05]} Rb7 {[%emt 0:00:15]} 50. Kg2 {[%emt 0:00:47]} Rb8 {[%emt 0:00:11]} 51. Kf1 {[%emt 0:00:55]} Ra8 {[%emt 0:00:04]} 52. Rc2 {[%emt 0:00:34]} Ra6 {[%emt 0:00:05]} 53. a4 {[%emt 0:00:35]} Rb6 {[%emt 0:05:26]} 54. axb5 {[%emt 0:00:06]} Rxb5 {[%emt 0:00:02]} 55. Ba4 {[%emt 0:00:28]} Rb7 {[%emt 0:00:04]} 56. Rf2 {[%emt 0:00:50]} Bd7 {[%emt 0:00:55]} 57. Bxd7 {[%emt 0:00:29]} Rxd7 {[%emt 0:00:04]} 58. b4 {[%emt 0:00:07]} a4 {[%emt 0:00:49]} 59. Ra2 {[%emt 0:00:17]} Rc7 {[%emt 0:00:08]} 60. Ra3 {[%emt 0:00:09]} h5 {[%emt 0:01:00]} 61. Kg2 {[%emt 0:00:12]} h4 {[%emt 0:00:38]} 62. b5 {[%emt 0:01:20]} Rb7 {[%emt 0:01:00]} 63. Rxa4 {[%emt 0:00:15]} Rxb5 {[%emt 0:00:04]} 64. Rb4 {[%emt 0:01:15]} Ra5 {[%emt 0:00:04]} 65. Rb6 {[%emt 0:00:32]} Kg4 {[%emt 0:01:24]} 66. h3+ {[%emt 0:00:17]} Kg5 {[%emt 0:00:04]} 67. gxh4+ {[%emt 0:00:28]} Kxh4 {[%emt 0:00:01]} 68. Rb2 {[%emt 0:00:42]} Ra1 {[%emt 0:00:17]} 69. Rf2 {[%emt 0:00:08]} Rc1 {[%emt 0:02:30]} 70. Rf4+ {[%emt 0:00:55]} Kg5 {[%emt 0:00:06]} 71. h4+ {[%emt 0:00:03]} Kf6 {[%emt 0:00:59]} 72. h5 {[%emt 0:00:30]} Rc2+ {[%emt 0:00:04]} 73. Kf1 {[%emt 0:00:28]} Rxc3 {[%emt 0:00:30]} 74. h6 {[%emt 0:00:14]} Rc8 {[%emt 0:00:04]} 75. Rh4 {[%emt 0:00:55]} Kg6 {[%emt 0:00:14]} 76. Kf2 {[%emt 0:00:51]} Rh8 {[%emt 0:00:08]} 77. Rh1 {[%emt 0:00:15]} Rxh6 {[%emt 0:00:14]} 78. Rg1+ {[%emt 0:00:03]} Kf6 {[%emt 0:00:10]} 79. Rg8 {[%emt 0:00:04]} Rh2+ {[%emt 0:00:28]} 80. Ke1 {[%emt 0:00:10]} Rh6 {[%emt 0:01:12]} 81. Kf2 {[%emt 0:00:27]} Rg6 {[%emt 0:00:25]} 82. Ra8 {[%emt 0:00:04]} Kg5 {[%emt 0:00:04]} 83. Ra5 {[%emt 0:00:41]} Kg4 {[%emt 0:00:09]} 84. Rxd5 {[%emt 0:00:07]} Rh6 {[%emt 0:00:15]} 85. Ke1 {[%emt 0:02:04]} Kf3 {[%emt 0:00:51]} 86. Kd2 {[%emt 0:00:00]} f4 {[%emt 0:00:14]} 0-1

[Event "SixDays Budapest GM-A May 2024"]
[Site "Budapest"]
[Date "2024.05.21"]
[Round "9.4"]
[White "Tan, Jun Ying"]
[Black "Sahib Singh"]
[Result "0-1"]
[ECO "A06"]
[WhiteElo "2307"]
[BlackElo "2291"]
[Annotator "RC"]
[PlyCount "112"]
[EventDate "2024.05.15"]
[EventType "tourn"]
[EventCountry "HUN"]
[SourceTitle "playchess.com"]
[Source "ChessBase"]
[SourceQuality "1"]
[TimeControl "40/5400+30:1800+30"]

1. Nf3 {[%emt 0:00:07]} d5 {[%emt 0:00:36]} 2. c4 {[%emt 0:00:15]} e6 {[%emt 0:00:03]} 3. b3 {[%emt 0:00:12]} Nf6 {[%emt 0:00:11]} 4. g3 {[%emt 0:00:14]} c5 {[%emt 0:00:54]} 5. Bg2 {[%emt 0:00:53]} Nc6 {[%emt 0:00:18]} 6. O-O {[%emt 0:01:46]} d4 {[%emt 0:01:20]} 7. e3 {[%emt 0:03:31]} e5 {[%emt 0:02:18]} 8. exd4 {[%emt 0:00:58]} exd4 {[%emt 0:00:09]} 9. d3 {[%emt 0:04:49]} Be7 {[%emt 0:00:49]} 10. a3 {[%emt 0:01:17]} O-O {[%emt 0:00:20]} 11. Bg5 {[%emt 0:02:28]} h6 {[%emt 0:02:18]} 12. Bxf6 {[%emt 0:03:48]} Bxf6 {[%emt 0:00:04]} 13. Nbd2 {[%emt 0:00:42]} Bf5 {[%emt 0:00:03]} 14. Ne1 {[%emt 0:00:27]} Qd7 {[%emt 0:00:34]} 15. Ra2 {[%emt 0:21:14]} a5 {[%emt 0:05:17]} 16. Be4 {[%emt 0:12:07]} Bg4 {[%emt 0:03:26]} 17. f3 {[%emt 0:03:06]} Bh3 {[%emt 0:00:04]} 18. Ng2 {[%emt 0:01:01]} Ne7 {[%emt 0:00:24]} 19. Re1 {[%emt 0:11:33]} Bg5 {[%emt 0:03:03]} 20. f4 {[%emt 0:03:00]} Bf6 {[%emt 0:00:01]} 21. Bf3 {[%emt 0:01:06]} Nf5 {[%emt 0:01:12]} 22. Ne4 {[%emt 0:03:57]} Bxg2 {[%emt 0:12:15]} 23. Nxf6+ {[%emt 0:01:50]} gxf6 {[%emt 0:00:11]} 24. Bxg2 {[%emt 0:00:12]} Ne3 {[%emt 0:00:06]} 25. Qh5 {[%emt 0:05:04]} f5 {[%emt 0:02:36]} 26. Qxh6 {[%emt 0:01:03]} Ra6 {[%emt 0:00:05]} 27. Qh5 {[%emt 0:00:13]} Kg7 {[%emt 0:00:24]} 28. Qf3 {[%emt 0:02:48]} b5 {[%emt 0:02:12]} 29. Rxe3 dxe3 {[%emt 0:00:08]} 30. Qxe3 {[%emt 0:05:08]} Re6 {[%emt 0:02:31]} 31. Qxc5 {[%emt 0:00:37]} Qxd3 {[%emt 0:00:05]} 32. Rf2 {[%emt 0:01:09]} bxc4 {[%emt 0:01:26]} 33. bxc4 {[%emt 0:02:04]} Rb8 {[%emt 0:01:03]} 34. Bf3 {[%emt 0:06:22]} Rb2 {[%emt 0:10:33]} 35. Kg2 {[%emt 0:01:05]} Re1 {[%emt 0:15:03]} 36. Kh3 {[%emt 0:01:04]} Rxf2 {[%emt 0:02:49]} 37. Qxf2 {[%emt 0:00:06]} Re3 {[%emt 0:00:25]} 38. Bd5 {[%emt 0:00:50]} Qxa3 {[%emt 0:00:02]} 39. Qc2 {[%emt 0:00:46]} Qd3 {[%emt 0:03:33]} 40. Qa2 {[%emt 0:01:01]} Qf1+ {[%emt 0:01:03]} 41. Bg2 {[%emt 0:30:23]} Re2 {[%emt 0:30:10]} 42. Bxf1 {[%emt 0:00:40]} Rxa2 {[%emt 0:00:01]} 43. Bd3 {[%emt 0:00:28]} a4 {[%emt 0:00:20]} 44. Bxf5 {[%emt 0:00:34]} a3 {[%emt 0:00:09]} 45. c5 {[%emt 0:00:06]} Ra1 {[%emt 0:01:25]} 46. c6 {[%emt 0:00:51]} Rc1 {[%emt 0:00:03]} 47. Be4 {[%emt 0:00:33]} a2 {[%emt 0:00:05]} 48. Kg4 {[%emt 0:00:25]} a1=Q {[%emt 0:00:07]} 49. h4 {[%emt 0:00:11]} Rc3 {[%emt 0:00:14]} 50. c7 {[%emt 0:00:14]} Rxc7 {[%emt 0:00:08]} 51. h5 {[%emt 0:00:06]} Rc3 {[%emt 0:00:06]} 52. Kh4 {[%emt 0:01:22]} Qe1 {[%emt 0:00:04]} 53. h6+ {[%emt 0:00:09]} Kxh6 {[%emt 0:00:04]} 54. Bf3 {[%emt 0:01:02]} Rxf3 {[%emt 0:00:06]} 55. Kg4 {[%emt 0:00:01]} Qxg3+ {[%emt 0:00:07]} 56. Kf5 {[%emt 0:00:01]} Qxf4# {[%emt 0:00:06]} 0-1

[Event "SixDays Budapest GM-A May 2024"]
[Site "Budapest"]
[Date "2024.05.21"]
[Round "9.5"]
[White "Berczes, David"]
[Black "Nagy, Gabor"]
[Result "1/2-1/2"]
[ECO "D31"]
[WhiteElo "2425"]
[BlackElo "2433"]
[Annotator "TA"]
[PlyCount "22"]
[EventDate "2024.05.15"]
[EventType "tourn"]
[EventCountry "HUN"]
[SourceTitle "playchess.com"]
[Source "ChessBase"]
[SourceQuality "1"]
[TimeControl "40/5400+30:1800+30"]

{[%evp 17,22,13,12,-30,6,11,16]} 1. d4 d5 2. c4 e6 3. Nc3 a6 4. e3 Nf6 5. Nf3 dxc4 6. a4 c5 7. Bxc4 Nc6 8. O-O cxd4 9. exd4 Be7 10. Qe2 O-O 11. Rd1 Nb4 {A rather calm draw.   Weighted Error Value: White=0.20 (precise) /Black=0.19 (very precise) .  Inaccurate:     	---       	Black=1      OK:         	White=1     	Black=1} 1/2-1/2